Cogmind - Beta 16.1 @@@ ROGUE MODE // 2026.04.01 @ 14:44:07 Player: War__Prophet Result: Destroyed by EMP Trap Performance ------------- Evolutions (1) 500 Regions Visited (2) 400 Robots Destroyed (7) 35 Value Destroyed (221) 221 Prototype IDs (0) 0 Alien Tech Used (0) 0 Bonus (200) 200 TOTAL SCORE: 1356 Bonus ------- Pacifist 200 Cogmind --------- Core Integrity 0/400 Matter 87/300 Energy 98/100 System Corruption 0% Temperature Cool (9) Movement Core (50) Location -9/Materials Parts ------- > --- POWER (1) -------- (None) > --- PROPULSION (4) --- (None) > --- UTILITY (2) ------ (None) > --- WEAPON (2) ------- (None) > --- INVENTORY (5) ---- Ion Engine Wheel Wheel Peak State ------------ > --- POWER ------------ Ion Engine > --- PROPULSION ------- Wheel Compact Wheel > --- UTILITY ---------- Small Storage Unit > --- WEAPON ----------- Medium Laser Small Laser > --- INVENTORY -------- (None) [Rating: 6] Favorites ----------- Power Ion Engine Engine Ion Engine Propulsion Wheel Treads Light Treads Wheel Wheel Utility Small Storage Unit Storage Small Storage Unit Weapon Medium Laser Energy Gun Medium Laser Launcher Rocket Launcher Build | -11 -10 -9 ------- Run | Yrd Mat Mat Slots Evolved 2 | . . 2 Power . | . . . Propulsion 2 | . . 2 Utility . | . . . Weapon . | . . . Parts Attached 13 | 6 2 5 Power 1 | 1 . . Engine 1 | 1 . . Core . | . . . Reactor . | . . . Propulsion 6 | 2 2 2 Treads 2 | . . 2 Leg . | . . . Wheel 4 | 2 2 . Hover . | . . . Flight . | . . . Utility 1 | 1 . . Device . | . . . Storage 1 | 1 . . Processor . | . . . Hackware . | . . . Protection . | . . . Artifact . | . . . Weapon 5 | 2 . 3 Energy Gun 2 | 2 . . Energy Cannon . | . . . Ballistic Gun . | . . . Ballistic Cannon . | . . . Launcher 3 | . . 3 Special Weapon . | . . . Impact Weapon . | . . . Slashing Weapon . | . . . Piercing Weapon . | . . . Special Melee Weapon . | . . . Unidentified Prototypes . | . . . Parts Lost 3 | . . 3 Power . | . . . Propulsion . | . . . Utility . | . . . Weapon 3 | . . 3 Highest Loss Streak 3 | . . 3 To Critical Strikes . | . . . Average Backups 1 | . 1 3 Power . | . 1 1 Propulsion . | . . 2 Utility . | . . . Weapon . | . . . Tool/Special . | . . . Unused Backups 3 | . . 3 Power 1 | . . 1 Propulsion 2 | . . 2 Utility . | . . . Weapon . | . . . Tool/Special . | . . . Average Slot Usage (%) 28 | . 40 4 Engine 3 | . 5 . Wheel 12 | . 19 . Storage 3 | . 5 . Energy Gun 7 | . 10 . Peak Build Rating 6 | 6 6 4 Average Rating 2 | 4 2 . On Entrance 2 | . 6 . Avg Prop Armor Cover (%) . | . . . Naked Turns 100 | . 49 51 Heaviest Build 13 | 13 13 4 Greatest Support 40 | 26 26 40 Greatest Overweight (x) 1 | . . 1 Average Overweight (x) . | . . . Largest Inventory Capacity 8 | 8 8 5 Average Capacity 6 | 7 6 5 Most Carried 3 | 1 3 3 Average Carried 1 | . 1 3 Final Capacity 8 | 8 5 5 Final Carried 3 | 1 3 3 Class Distribution -------------------- 100% | Mutant Dominant Class ---------------- Mutant | -10/Materials Mutant | -9/Materials Resources | -11 -10 -9 ----------- Run | Yrd Mat Mat Matter Collected 164 | 140 . 24 Remotely . | . . . Salvage Created 131 | . . 131 Parts 15 | . . 15 Haulers Intercepted . | . . . Recyclers Shooed 1 | . . 1 Parts Field Recycled . | . . . Retrieved Matter . | . . . Parts Self-Destructed . | . . . Prevented . | . . . Parts Restored . | . . . Kills | -11 -10 -9 ------- Run | Yrd Mat Mat Combat Hostiles Destroyed 7 | . . 7 AOE 7 | . . 7 Classes Destroyed 3 | . . 3 Swarmer 3 | . . 3 Grunt 2 | . . 2 Sentry 2 | . . 2 Best Kill Streak 7 | . . 7 Combat Bots Only 7 | . . 7 Max Kills in Single Turn 3 | . . 3 Gunslinging . | . . . Exploded 3 | . . 3 Melee . | . . . Uniques/NPCs Destroyed . | . . . Combat | -11 -10 -9 -------- Run | Yrd Mat Mat Hostile Shots Fired 43 | . . 43 Missed 9 | . . 9 Hits 34 | . . 34 Projectile 34 | . . 34 Damage Taken 619 | . 4 615 Core 404 | . 4 400 Absorbed by Shields . | . . . Core Remaining (%) 99 | 100 98 . Volleys Fired 4 | . . 4 Largest 2 | . . 2 Hottest 66 | . . 66 Shots Fired 6 | . . 6 Gun . | . . . Cannon . | . . . Launcher 6 | . . 6 Special . | . . . Kinetic . | . . . Thermal . | . . . Explosive 6 | . . 6 Electromagnetic . | . . . Robot Hit Streak 1 | . . 1 Robot Miss Streak 1 | . . 1 Penetration Max . | . . . Secondary Targets . | . . . Shots Hit Robots 2 | . . 2 Core Hits 10 | . . 10 Critical Kills . | . . . Critical Parts Destroyed . | . . . Critical Strikes . | . . . Melee Attacks . | . . . Impact . | . . . Slashing . | . . . Piercing . | . . . Sneak Attacks . | . . . Combat Hostiles . | . . . Follow-up Attacks . | . . . Damage Inflicted 496 | . 8 488 Guns . | . . . Cannons . | . . . Explosions 488 | . . 488 Melee . | . . . Ramming 8 | . 8 . Kinetic . | . . . Thermal 135 | . . 135 Explosive 353 | . . 353 Electromagnetic . | . . . Impact . | . . . Slashing . | . . . Piercing . | . . . Highest Corruption . | . . . Average Corruption . | . . . Corruption Purged . | . . . Corruption Blocked . | . . . Overload Shots . | . . . Overflow Damage 52 | . . 52 Projectiles . | . . . Explosions 52 | . . 52 Melee . | . . . Knockbacks . | . . . Impact . | . . . Kinetic . | . . . Secondary . | . . . Self-Inflicted Damage 163 | . 4 159 Shots 5 | . . 5 Rammed 1 | . 1 . Targets Rammed 1 | . 1 . Kicked . | . . . Crushed . | . . . Highest Temperature 3 | . . 3 Average Temperature 3 | . . 3 Received Heat Transfer 120 | . . 120 Siege Activations . | . . . Martial Activations . | . . . Shielding Activations . | . . . Robots Disrupted . | . . . Combat Hostiles . | . . . Robots Corrupted . | . . . Combat Hostiles . | . . . Parts Fried . | . . . Impact Corruptions . | . . . Robots Melted . | . . . Combat Hostiles . | . . . Parts Melted . | . . . Heat Transferred 150 | . . 150 Parts Sabotaged . | . . . Parts Stolen . | . . . Parts Stripped . | . . . Power Chain Reactions . | . . . Alert | -11 -10 -9 ------- Run | Yrd Mat Mat Maximum Alert Level 1 | . . 1 Low Security (%) 95 | 100 100 80 Level 1 5 | . . 20 Level 2 . | . . . Level 3 . | . . . Level 4 . | . . . Level 5 . | . . . High Security . | . . . Max Security . | . . . Peak Influence 228 | . . 228 Initial . | . . . Average 19 | . . 77 Influence Increases 268 | . . 268 Destroy 0b10 Robot/C 140 | . . 140 Destroy Leader 40 | . . 40 Disable Machine 30 | . . 30 Destroy Structure 43 | . . 43 Lose Combat Pursuer 15 | . . 15 Influence Decreases 50 | . . 50 Time Decay 20 | . . 20 Lost Part 30 | . . 30 Squads Dispatched 1 | . . 1 Investigation . | . . . Extermination . | . . . Reinforcement 1 | . . 1 Assault . | . . . Garrison . | . . . Intercept . | . . . Searches Triggered . | . . . Construction Impeded 1 | . . 1 Haulers Reinforced . | . . . Active Scanning Responses . | . . . Cargo Convoy Interrupts . | . . . Stealth | -11 -10 -9 --------- Run | Yrd Mat Mat Distress Signals . | . . . Communications Jammed . | . . . Distress Signals . | . . . Times Spotted 15 | . 2 13 Peak Tracking Total 8 | . 1 8 Tactical Retreats 1 | . . 1 Traps | -11 -10 -9 ------- Run | Yrd Mat Mat Traps Triggered 4 | . 3 1 Indirectly . | . . . Trap Hack Attempts . | . . . Triggered . | . . . Disarmed . | . . . Reprogrammed . | . . . Reused . | . . . Traps Extracted . | . . . Installed . | . . . Triggered . | . . . Machines | -11 -10 -9 ---------- Run | Yrd Mat Mat Machines Disabled 2 | . . 2 Max in Single Turn 1 | . . 1 Machines Repaired . | . . . Machines Dismantled . | . . . Machines Sabotaged . | . . . Overloaded Fab Kills . | . . . Hacking | -11 -10 -9 --------- Run | Yrd Mat Mat Machines Accessed . | . . . Terminals . | . . . Fabricators . | . . . Repair Stations . | . . . Recycling Units . | . . . Scanalyzers . | . . . Garrison Access . | . . . Total Hacks . | . . . Successful . | . . . Failed . | . . . Catastrophic . | . . . Database Lockouts . | . . . Manual . | . . . Terminals . | . . . Fabricators . | . . . Repair Stations . | . . . Recycling Units . | . . . Scanalyzers . | . . . Garrison Access . | . . . Terminal Hacks . | . . . Fabricator Hacks . | . . . Repair Station Hacks . | . . . Recycling Unit Hacks . | . . . Scanalyzer . | . . . Garrison Access Hacks . | . . . Unauthorized Hacks . | . . . Terminals . | . . . Fabricators . | . . . Repair Stations . | . . . Recycling Units . | . . . Scanalyzers . | . . . Garrison Access . | . . . Data Cores Recovered . | . . . Used . | . . . Hacking Detections . | . . . Full Trace Events . | . . . Feedback Events . | . . . Feedback Blocked . | . . . Robot Schematics Acquired . | . . . Robots Built . | . . . Authchips . | . . . Time . | . . . Total Robot Build Rating . | . . . Part Schematics Acquired . | . . . Parts Built . | . . . Authchips . | . . . Time . | . . . Total Part Build Rating . | . . . Part Studies Acquired . | . . . Parts Repaired . | . . . Time . | . . . Parts Recycled . | . . . Recycled Matter . | . . . Retrieved Matter . | . . . Retrieved Components . | . . . Parts Scanalyzed . | . . . Part Schematics Acquired . | . . . Parts Damaged . | . . . Bothacking | -11 -10 -9 ------------ Run | Yrd Mat Mat Used RIF Installer . | . . . Robots Hacked . | . . . Non-combat . | . . . Combat . | . . . Robot Hacks Applied . | . . . Relay Couplers Released . | . . . Fabnet Peak Effective % . | . . . Robots Rewired . | . . . Allies Hacked . | . . . Hacks Repelled . | . . . Allies | -11 -10 -9 -------- Run | Yrd Mat Mat Total Allies . | . . . Largest Group . | . . . Highest-Rated Group . | . . . Highest-Rated Ally . | . . . Total Orders . | . . . Ally Attacks . | . . . Total Damage . | . . . Kills . | . . . Allies Corrupted . | . . . Allies Melted . | . . . Intel | -11 -10 -9 ------- Run | Yrd Mat Mat Active Infowar (turns) . | . . . Robot Analysis Total . | . . . Derelict Logs Recovered . | . . . Drone Launches . | . . . Drone Recoveries . | . . . Exploration | -11 -10 -9 ------------- Run | Yrd Mat Mat Turns Passed 280 | 60 150 70 Spaces Moved 361 | 57 208 96 Core 192 | 3 96 93 Treads 3 | . . 3 Legs . | . . . Wheels 166 | 54 112 . Hover . | . . . Flight . | . . . Fastest Speed 50 | 50 50 50 Average Speed 68 | 88 69 53 Slowest Speed 160 | 100 90 160 Overloaded Moves . | . . . Propulsion Burnouts . | . . . Robots Hopped . | . . . Potential Cave-ins . | . . . Cave-ins Triggered . | . . . Exploration Rate (%) 20 | 3 41 17 Regions Visited 2 Branch Regions . Pre-discovered Areas . | . . . Known Exits Taken . | . . . Unknown Exits Taken 2 | 1 1 . Scrap Searched . | . . . Spaces Dug . | . . . Terrain Destroyed 50 | . . 50 Melee . | . . . Projectile . | . . . AOE 50 | . . 50 Terrain Rammed . | . . . Walls Destroyed . | . . . Machines Disabled . | . . . Actions | -11 -10 -9 --------- Run | Yrd Mat Mat Total 380 | 63 212 105 Wait . | . . . Move 359 | 56 207 96 Hop . | . . . Pick Up 3 | 1 2 . Fast Attach 13 | 6 2 5 Attach . | . . . Detach . | . . . Swap . | . . . Drop . | . . . Fire 4 | . . 4 Melee . | . . . Ram 1 | . 1 . Kick . | . . . Crush . | . . . Escape Stasis . | . . . Rewire . | . . . Trap . | . . . Miscellaneous . | . . . Route ------- -11/Scrapyard -10/Materials -9/Materials History --------- Turn | Location | Event 12 | -11/Scrapyard | Discovered new exit (range 15) 61 | -11/Scrapyard | Entered Materials 117 | -10/Materials | Released all parts (6) 199 | -10/Materials | Discovered new exit (range 15) 211 | -10/Materials | Entered another Materials area 211 | -9/Materials | Evolved 2 slots: Propulsion x2 259 | -9/Materials | Core integrity fell below 50% 268 | -9/Materials | Core integrity fell below 20% 276 | -9/Materials | Released all parts (2) 281 | -9/Materials | Destroyed by EMP Trap Last Messages --------------- 00260_ Y-45 Defender destroyed. 00262_ U-05 Engineer lays Concrete. 00263_ Rocket Launcher destroyed. 00263_ Destroyed Rocket Launcher. 00263_ Rocket Launcher destroyed. 00263_ Destroyed Rocket Launcher. 00267_ Fusion Modulator explodes. 00267_ Destroyed Welding Torch. 00267_ Y-45 Defender destroyed. 00267_ ALERT: Construction progress impeded, dispatching reinforcements to local area. 00268_ Acquired Lgt. Treads. 00273_ Acquired 24 matter. 00276_ Released Lgt. Treads. 00278_ K-01 Serf collects debris. 00281_ G-34 Mercenary suffers critical hit (Burn). 00281_ Triggered EMP Trap. 00281_ A bubble of electromagnetic force engulfs the area. Map ----- +----------------------------------------------------+ | ?????????????????????????????????????????????????? | | ?????????????????????????????????????????????????? | | ?????????????????????????????????????????????????? | | ?????????????????????????????????????????????????? | | ?????????????????????????????????????????????????? | | ?????????????????????????????????????????????????? | | ?????????????????????????????????????????????????? | | ?????????????????????????????????????????????????? | | ???????????????????????? ??????????????????????? | | ???????????????????????? ?????????????????????? | | ???????????????????????? ?????????????????????? | | ???????????????????????? Y ?????????????????????? | | ???????????????????????# ?????????????????????? | | ???????????????????????# #?????????????????????? | | ???????????????????????# #?????????????????????? | | ???????????????????????#gg #?????????????????????? | | ???????????????????????# #?????????????????????? | | ???????????????????????# g#?????????????????????? | | ???????????????????????# #?????????????????????? | | ???????????????????????# #?????????????????????? | | ???????????????????????# #?????????????????????? | | ???????????????????????# #?????????????????????? | | ???????????????????????# u#?????????????????????? | | ???????????????????????# #??????##?##??????????? | | ???????????????????????# ####### ## #??????????? | | ???????????????????????# @ ## # #??????????? | | ???????????????????????# "" [ ##?????? #?? | | ??????????????????????## #????? #?? | | ???????????????? ###### ##???? #?? | | ?????????????? [ #??? #?? | | ????????????? = ;;"#### ##? | | ????????????? =* ; ## | | ??????????????######### [ ; | | ??????????????????????## *= ; """ | | ???????????????????????# # =[ ; """ | | ???#?######+?###???????# # ;" """ | | ???# #???????# ## # ; #" | | ???# """ """ #???????# ###+####### | | ???# """ """ #???????# r# / """ ### | | ???# """ """ #???????# #" """ # """ #?? | | ???# ??####### #T """ ### """ #?? | | ???? ????# + #" """ #?? ??? | | ####?? ??????# # # #?? #?? | | #####+######### """ # / #?? ### #?? | | + """ # # #?? #?? #?? | | T ######## """ # # #?? #??? #?? | | #??????# # ####+######??+#??? #?? | | ########??????#* # ?????????????????? #?? | | ##?????????????# # ????????????????????? | | #??????????????# " " # ???????????????????? | +----------------------------------------------------+ Best States ------------- Heat Dissipation 28 Energy Generation 10 Energy Capacity 250 Matter Stores 180 Matter Capacity 300 Sight Range 16 Terrain Scan Density 10 Evasion (%) 50 Recoil Reduction 1 Item Schematics ----------------- None Robot Schematics ------------------ None Fabricated ------------ Nothing Repaired ---------- Nothing Studied --------- None Alien Tech Used ----------------- None Achievements -------------- None Challenges ------------ None Game ------ Seed GravmagCloakScrap Manual? 0 Play Time 00:03:45 Cumulative 60.9 hours Start 2026.04.01 @ 10:21:37 End 2026.04.01 @ 14:44:07 Sessions 1 Manual Loads 0 Difficulty Rogue Special Mode None Game No. 221 Rogue 221 Adventurer 0 Explorer 0 Win Type - Total 0 Types 0/0/0/0/0/0/0/0/0/0 Lore% 14 Gallery% 39 Achievement% 28 Wizard Run 0 Options --------- Layout 1 ASCII 0 Keyboard 1 Movement Vi Keybinds 0 Fullscreen 2 Font 24/Smallcaps Map View 50x35 Zoom Use 0% Tactical HUD 1 Map Filters NONE Filters NONE Steam 1 RUN: e50bcefe-b077-4e1a-9cd7-bb4a907ce73a